[Event "Titled Tuesday Blitz August 1 Late 2023"]
[White "Bazzano, Sebastian"]
[Black "Romero Arzuaga, Yudel"]
[WhiteFideId "104566"]
[BlackFideId "3521010"]
[WhiteElo "2211"]
[BlackElo "2336"]
[Result "1-0"]
[Round "4"]
[TimeControl "180+1"]
[Date "2023.08.01"]
[WhiteClock "0:00:06"]
[BlackClock "0:00:32"]
[Board "173"]

1. d4 {[%clk 0:03:00]}  d5 {[%clk 0:02:59]} 2. Bf4 {[%clk 0:02:58]}  e6 {[%clk 0:02:59]} 3. e3 {[%clk 0:02:58]}  Nf6 {[%clk 0:02:59]} 4. Nd2 {[%clk 0:02:57]}  Bd6 {[%clk 0:03:00]} 5. Bg3 {[%clk 0:02:57]}  O-O {[%clk 0:03:00]} 6. Ngf3 {[%clk 0:02:57]}  b6 {[%clk 0:03:01]} 7. Ne5 {[%clk 0:02:55]}  Ba6 {[%clk 0:03:01]} 8. Bxa6 {[%clk 0:02:53]}  Nxa6 {[%clk 0:03:02]} 9. Qe2 {[%clk 0:02:47]}  Nb8 {[%clk 0:03:00]} 10. O-O {[%clk 0:02:43]}  c5 {[%clk 0:03:01]} 11. c3 {[%clk 0:02:41]}  Qc7 {[%clk 0:03:01]} 12. f4 {[%clk 0:02:39]}  Nc6 {[%clk 0:02:57]} 13. Bh4 {[%clk 0:02:37]}  Nd7 {[%clk 0:02:55]} 14. Rf3 {[%clk 0:02:21]}  f6 {[%clk 0:02:54]} 15. Nxd7 {[%clk 0:02:20]}  Qxd7 {[%clk 0:02:54]} 16. Raf1 {[%clk 0:02:12]}  Rae8 {[%clk 0:02:54]} 17. Kh1 {[%clk 0:01:59]}  b5 {[%clk 0:02:49]} 18. dxc5 {[%clk 0:01:41]}  Bxc5 {[%clk 0:02:48]} 19. Qxb5 {[%clk 0:01:38]}  Bd6 {[%clk 0:02:48]} 20. Qd3 {[%clk 0:01:28]}  Rb8 {[%clk 0:02:46]} 21. b4 {[%clk 0:01:23]}  Rfc8 {[%clk 0:02:40]} 22. e4 {[%clk 0:01:13]}  Ne7 {[%clk 0:02:36]} 23. a3 {[%clk 0:00:57]}  Rd8 {[%clk 0:02:19]} 24. Nb3 {[%clk 0:00:35]}  dxe4 {[%clk 0:02:16]} 25. Qxe4 {[%clk 0:00:35]}  Nf5 {[%clk 0:02:15]} 26. Bf2 {[%clk 0:00:29]}  Bf8 {[%clk 0:02:14]} 27. Nd4 {[%clk 0:00:24]}  Nxd4 {[%clk 0:02:12]} 28. Bxd4 {[%clk 0:00:25]}  a5 {[%clk 0:02:10]} 29. Rh3 {[%clk 0:00:23]}  f5 {[%clk 0:02:00]} 30. Qe3 {[%clk 0:00:20]}  axb4 {[%clk 0:01:58]} 31. axb4 {[%clk 0:00:20]}  g6 {[%clk 0:01:46]} 32. Re1 {[%clk 0:00:18]}  Re8 {[%clk 0:01:39]} 33. Qe5 {[%clk 0:00:18]}  Re7 {[%clk 0:01:36]} 34. Qh8+ {[%clk 0:00:18]}  Kf7 {[%clk 0:01:37]} 35. Rxh7+ {[%clk 0:00:18]}  Ke8 {[%clk 0:01:37]} 36. Rxe7+ {[%clk 0:00:16]}  Qxe7 {[%clk 0:01:36]} 37. Qe5 {[%clk 0:00:15]}  Rd8 {[%clk 0:01:34]} 38. Qxe6 {[%clk 0:00:15]}  Qxe6 {[%clk 0:01:35]} 39. Rxe6+ {[%clk 0:00:16]}  Kf7 {[%clk 0:01:35]} 40. Rb6 {[%clk 0:00:14]}  Rd7 {[%clk 0:01:33]} 41. g3 {[%clk 0:00:14]}  Be7 {[%clk 0:01:23]} 42. Kg2 {[%clk 0:00:14]}  Rd8 {[%clk 0:01:20]} 43. Kf3 {[%clk 0:00:14]}  Ra8 {[%clk 0:01:19]} 44. h3 {[%clk 0:00:14]}  Ra1 {[%clk 0:01:18]} 45. g4 {[%clk 0:00:12]}  Rf1+ {[%clk 0:01:16]} 46. Kg3 {[%clk 0:00:09]}  fxg4 {[%clk 0:01:16]} 47. hxg4 {[%clk 0:00:09]}  Rd1 {[%clk 0:01:10]} 48. f5 {[%clk 0:00:09]}  Rd3+ {[%clk 0:01:05]} 49. Kf4 {[%clk 0:00:08]}  g5+ {[%clk 0:00:57]} 50. Ke4 {[%clk 0:00:07]}  Rg3 {[%clk 0:00:57]} 51. f6 {[%clk 0:00:07]}  Rxg4+ {[%clk 0:00:32]} 52. Kf5 {[%clk 0:00:06]} 1-0


[Site "https://www.chess.com"]

[Event "Titled Tuesday Blitz August 1 Late 2023"]
[White "Osmonbekov, Talaibek"]
[Black "Prydun, Andriy"]
[WhiteFideId "2017253"]
[BlackFideId "14145898"]
[WhiteElo "2180"]
[BlackElo "2329"]
[Result "1/2-1/2"]
[Round "4"]
[TimeControl "180+1"]
[Date "2023.08.01"]
[WhiteClock "0:00:15"]
[BlackClock "0:00:14"]
[Board "175"]

1. d4 {[%clk 0:03:00]}  Nf6 {[%clk 0:02:57]} 2. Nc3 {[%clk 0:03:01]}  d5 {[%clk 0:02:55]} 3. Bf4 {[%clk 0:03:01]}  c5 {[%clk 0:02:56]} 4. e3 {[%clk 0:03:01]}  cxd4 {[%clk 0:02:53]} 5. exd4 {[%clk 0:03:01]}  a6 {[%clk 0:02:53]} 6. Nf3 {[%clk 0:03:02]}  Nc6 {[%clk 0:02:51]} 7. Ne5 {[%clk 0:03:01]}  Qb6 {[%clk 0:02:44]} 8. Nxc6 {[%clk 0:03:01]}  bxc6 {[%clk 0:02:29]} 9. Na4 {[%clk 0:02:59]}  Qa5+ {[%clk 0:02:24]} 10. c3 {[%clk 0:02:59]}  e6 {[%clk 0:02:08]} 11. Qb3 {[%clk 0:02:59]}  Qd8 {[%clk 0:01:50]} 12. Nb6 {[%clk 0:02:46]}  Ra7 {[%clk 0:01:50]} 13. Nxc8 {[%clk 0:02:47]}  Qxc8 {[%clk 0:01:51]} 14. Qb6 {[%clk 0:02:46]}  Qb7 {[%clk 0:01:49]} 15. Qxb7 {[%clk 0:02:40]}  Rxb7 {[%clk 0:01:47]} 16. b4 {[%clk 0:02:40]}  Ra7 {[%clk 0:01:43]} 17. f3 {[%clk 0:02:16]}  Be7 {[%clk 0:01:41]} 18. a4 {[%clk 0:02:16]}  O-O {[%clk 0:01:40]} 19. a5 {[%clk 0:02:13]}  Rfa8 {[%clk 0:01:38]} 20. g4 {[%clk 0:02:10]}  Ne8 {[%clk 0:01:38]} 21. Bd3 {[%clk 0:02:00]}  Bd6 {[%clk 0:01:36]} 22. Be3 {[%clk 0:01:54]}  Nc7 {[%clk 0:01:36]} 23. h4 {[%clk 0:01:52]}  Nb5 {[%clk 0:01:35]} 24. Kd2 {[%clk 0:01:52]}  Re7 {[%clk 0:01:32]} 25. f4 {[%clk 0:01:46]}  f6 {[%clk 0:01:08]} 26. Rae1 {[%clk 0:01:33]}  Rae8 {[%clk 0:01:05]} 27. h5 {[%clk 0:01:24]}  e5 {[%clk 0:00:52]} 28. fxe5 {[%clk 0:01:24]}  fxe5 {[%clk 0:00:49]} 29. Bg5 {[%clk 0:01:24]}  Rf7 {[%clk 0:00:39]} 30. Bxb5 {[%clk 0:01:09]}  cxb5 {[%clk 0:00:37]} 31. dxe5 {[%clk 0:01:01]}  Bxe5 {[%clk 0:00:36]} 32. Be3 {[%clk 0:00:54]}  Bg3 {[%clk 0:00:29]} 33. Ref1 {[%clk 0:00:44]}  Re4 {[%clk 0:00:28]} 34. g5 {[%clk 0:00:37]}  g6 {[%clk 0:00:22]} 35. hxg6 {[%clk 0:00:34]}  Rxf1 {[%clk 0:00:21]} 36. gxh7+ {[%clk 0:00:34]}  Kh8 {[%clk 0:00:19]} 37. Rxf1 {[%clk 0:00:34]}  Kxh7 {[%clk 0:00:19]} 38. Rf6 {[%clk 0:00:34]}  Be5 {[%clk 0:00:16]} 39. Rh6+ {[%clk 0:00:31]}  Kg7 {[%clk 0:00:16]} 40. Rc6 {[%clk 0:00:31]}  d4 {[%clk 0:00:13]} 41. Bxd4 {[%clk 0:00:27]}  Bxd4 {[%clk 0:00:14]} 42. cxd4 {[%clk 0:00:27]}  Rxd4+ {[%clk 0:00:14]} 43. Kc3 {[%clk 0:00:28]}  Rg4 {[%clk 0:00:12]} 44. g6 {[%clk 0:00:27]}  Rg3+ {[%clk 0:00:10]} 45. Kd4 {[%clk 0:00:27]}  Rg4+ {[%clk 0:00:11]} 46. Kc5 {[%clk 0:00:25]}  Rc4+ {[%clk 0:00:11]} 47. Kb6 {[%clk 0:00:25]}  Rxb4 {[%clk 0:00:11]} 48. Kxa6 {[%clk 0:00:25]}  Rb3 {[%clk 0:00:11]} 49. Kb6 {[%clk 0:00:24]}  b4 {[%clk 0:00:11]} 50. a6 {[%clk 0:00:24]}  Ra3 {[%clk 0:00:12]} 51. a7 {[%clk 0:00:23]}  b3 {[%clk 0:00:12]} 52. Rc1 {[%clk 0:00:18]}  b2 {[%clk 0:00:12]} 53. Rb1 {[%clk 0:00:19]}  Rb3+ {[%clk 0:00:12]} 54. Kc7 {[%clk 0:00:18]}  Ra3 {[%clk 0:00:13]} 55. Kb8 {[%clk 0:00:17]}  Rb3+ {[%clk 0:00:14]} 56. Kc8 {[%clk 0:00:15]}  Ra3 {[%clk 0:00:14]} 57. Rxb2 {[%clk 0:00:15]}  Rxa7 {[%clk 0:00:14]} 58. Rb6 {[%clk 0:00:15]}  Ra5 {[%clk 0:00:13]} 59. Kd8 {[%clk 0:00:15]}  Rg5 {[%clk 0:00:14]} 60. Ke7 {[%clk 0:00:14]}  Rxg6 {[%clk 0:00:14]} 61. Rxg6+ {[%clk 0:00:15]}  Kxg6 {[%clk 0:00:14]} 1/2-1/2


[Site "https://www.chess.com"]

[Event "Titled Tuesday Blitz August 1 Late 2023"]
[White "Petersson, Kjell"]
[Black "Zilleruelo Irizarry, Diego"]
[WhiteFideId "1705148"]
[BlackFideId "3101460"]
[WhiteElo "2175"]
[BlackElo "2324"]
[Result "0-1"]
[Round "4"]
[TimeControl "180+1"]
[Date "2023.08.01"]
[WhiteClock "0:00:33"]
[BlackClock "0:01:40"]
[Board "176"]

1. d4 {[%clk 0:02:59]}  d5 {[%clk 0:02:59]} 2. Bf4 {[%clk 0:03:00]}  c5 {[%clk 0:02:59]} 3. e3 {[%clk 0:03:00]}  Qb6 {[%clk 0:02:59]} 4. Nc3 {[%clk 0:02:58]}  Nf6 {[%clk 0:02:58]} 5. a3 {[%clk 0:02:50]}  a6 {[%clk 0:02:52]} 6. Nf3 {[%clk 0:02:46]}  Nc6 {[%clk 0:02:51]} 7. Be2 {[%clk 0:02:34]}  cxd4 {[%clk 0:02:51]} 8. exd4 {[%clk 0:02:16]}  Bg4 {[%clk 0:02:45]} 9. O-O {[%clk 0:02:05]}  e6 {[%clk 0:02:45]} 10. Na4 {[%clk 0:01:58]}  Qd8 {[%clk 0:02:44]} 11. h3 {[%clk 0:01:56]}  Bxf3 {[%clk 0:02:44]} 12. Bxf3 {[%clk 0:01:57]}  Bd6 {[%clk 0:02:43]} 13. Bxd6 {[%clk 0:01:55]}  Qxd6 {[%clk 0:02:44]} 14. Re1 {[%clk 0:01:52]}  O-O {[%clk 0:02:44]} 15. Qd2 {[%clk 0:01:47]}  Rac8 {[%clk 0:02:37]} 16. Nc5 {[%clk 0:01:43]}  Nxd4 {[%clk 0:02:26]} 17. Qxd4 {[%clk 0:01:34]}  Qxc5 {[%clk 0:02:25]} 18. Qxc5 {[%clk 0:01:32]}  Rxc5 {[%clk 0:02:25]} 19. c3 {[%clk 0:01:33]}  Rfc8 {[%clk 0:02:23]} 20. Rad1 {[%clk 0:01:30]}  b5 {[%clk 0:02:24]} 21. Rd4 {[%clk 0:01:27]}  a5 {[%clk 0:02:22]} 22. g3 {[%clk 0:01:25]}  Kf8 {[%clk 0:02:21]} 23. Kg2 {[%clk 0:01:24]}  h6 {[%clk 0:02:20]} 24. h4 {[%clk 0:01:20]}  Nd7 {[%clk 0:02:16]} 25. Bg4 {[%clk 0:01:12]}  Nb6 {[%clk 0:02:10]} 26. Be2 {[%clk 0:01:08]}  Nc4 {[%clk 0:02:07]} 27. Bxc4 {[%clk 0:01:08]}  Rxc4 {[%clk 0:02:08]} 28. Red1 {[%clk 0:01:06]}  Rxd4 {[%clk 0:02:07]} 29. Rxd4 {[%clk 0:01:06]}  Rc4 {[%clk 0:02:07]} 30. Kf3 {[%clk 0:01:02]}  Rxd4 {[%clk 0:02:02]} 31. cxd4 {[%clk 0:01:03]}  Ke7 {[%clk 0:02:02]} 32. Ke3 {[%clk 0:01:01]}  Kd6 {[%clk 0:02:01]} 33. f4 {[%clk 0:00:59]}  f6 {[%clk 0:02:01]} 34. g4 {[%clk 0:00:54]}  e5 {[%clk 0:01:59]} 35. fxe5+ {[%clk 0:00:49]}  fxe5 {[%clk 0:01:59]} 36. dxe5+ {[%clk 0:00:49]}  Kxe5 {[%clk 0:02:00]} 37. b3 {[%clk 0:00:38]}  g5 {[%clk 0:01:51]} 38. h5 {[%clk 0:00:38]}  d4+ {[%clk 0:01:46]} 39. Kd3 {[%clk 0:00:37]}  Kd5 {[%clk 0:01:46]} 40. a4 {[%clk 0:00:34]}  b4 {[%clk 0:01:39]} 41. Kd2 {[%clk 0:00:35]}  Ke4 {[%clk 0:01:40]} 42. Ke2 {[%clk 0:00:35]}  d3+ {[%clk 0:01:40]} 43. Kd2 {[%clk 0:00:36]}  Kd4 {[%clk 0:01:40]} 44. Kd1 {[%clk 0:00:35]}  Kc3 {[%clk 0:01:40]} 45. Kc1 {[%clk 0:00:35]}  Kxb3 {[%clk 0:01:40]} 46. Kd2 {[%clk 0:00:33]}  Kc4 {[%clk 0:01:40]} 0-1


[Site "https://www.chess.com"]

[Event "Titled Tuesday Blitz August 1 Late 2023"]
[White "el_sporco"]
[Black "aleksanchess"]
[WhiteElo "2323"]
[BlackElo "2164"]
[Result "0-1"]
[Round "4"]
[TimeControl "180+1"]
[Date "2023.08.01"]
[WhiteClock "0:00:04"]
[BlackClock "0:00:22"]
[Board "177"]

1. e4 {[%clk 0:03:00]}  e6 {[%clk 0:02:58]} 2. d4 {[%clk 0:02:57]}  d5 {[%clk 0:02:59]} 3. Nc3 {[%clk 0:02:55]}  Bb4 {[%clk 0:02:58]} 4. e5 {[%clk 0:02:41]}  Ne7 {[%clk 0:02:57]} 5. a3 {[%clk 0:02:40]}  Bxc3+ {[%clk 0:02:57]} 6. bxc3 {[%clk 0:02:41]}  c5 {[%clk 0:02:58]} 7. Qg4 {[%clk 0:02:40]}  Nf5 {[%clk 0:02:57]} 8. Bd3 {[%clk 0:02:32]}  g6 {[%clk 0:02:43]} 9. Ne2 {[%clk 0:02:24]}  Qc7 {[%clk 0:02:43]} 10. Bxf5 {[%clk 0:02:21]}  exf5 {[%clk 0:02:38]} 11. Qg3 {[%clk 0:02:21]}  Be6 {[%clk 0:02:36]} 12. Bg5 {[%clk 0:02:15]}  Nc6 {[%clk 0:02:33]} 13. Bf6 {[%clk 0:02:15]}  Rg8 {[%clk 0:02:33]} 14. Qh4 {[%clk 0:02:12]}  cxd4 {[%clk 0:02:31]} 15. cxd4 {[%clk 0:02:11]}  Qa5+ {[%clk 0:02:13]} 16. c3 {[%clk 0:02:02]}  h5 {[%clk 0:02:13]} 17. O-O {[%clk 0:01:49]}  Qc7 {[%clk 0:02:09]} 18. Qg5 {[%clk 0:01:26]}  Na5 {[%clk 0:02:08]} 19. Qh6 {[%clk 0:01:23]}  Nc4 {[%clk 0:02:05]} 20. Qh7 {[%clk 0:01:22]}  Kd7 {[%clk 0:02:05]} 21. Nf4 {[%clk 0:01:19]}  Kc6 {[%clk 0:02:02]} 22. a4 {[%clk 0:01:09]}  b6 {[%clk 0:01:48]} 23. Rfb1 {[%clk 0:01:07]}  Rac8 {[%clk 0:01:47]} 24. Rb4 {[%clk 0:00:53]}  Na5 {[%clk 0:01:38]} 25. Rc1 {[%clk 0:00:31]}  Kb7 {[%clk 0:01:34]} 26. Qh6 {[%clk 0:00:28]}  Nc6 {[%clk 0:01:30]} 27. Rbb1 {[%clk 0:00:19]}  Nxd4 {[%clk 0:01:28]} 28. Nxd5 {[%clk 0:00:12]}  Ne2+ {[%clk 0:01:23]} 29. Kf1 {[%clk 0:00:12]}  Qc4 {[%clk 0:01:23]} 30. Ne3 {[%clk 0:00:09]}  Qd3 {[%clk 0:01:22]} 31. Rd1 {[%clk 0:00:09]}  Qa6 {[%clk 0:01:17]} 32. Ke1 {[%clk 0:00:08]}  Nxc3 {[%clk 0:01:17]} 33. Rbc1 {[%clk 0:00:06]}  Nxd1 {[%clk 0:01:17]} 34. Rxd1 {[%clk 0:00:07]}  Qa5+ {[%clk 0:01:16]} 35. Ke2 {[%clk 0:00:07]}  Qc3 {[%clk 0:01:11]} 36. Kf3 {[%clk 0:00:07]}  Qb4 {[%clk 0:01:09]} 37. Qf4 {[%clk 0:00:07]}  Qxf4+ {[%clk 0:01:06]} 38. Kxf4 {[%clk 0:00:08]}  Rc3 {[%clk 0:01:03]} 39. Kg5 {[%clk 0:00:08]}  Rgc8 {[%clk 0:01:03]} 40. Rd4 {[%clk 0:00:09]}  Ra3 {[%clk 0:01:00]} 41. Kh6 {[%clk 0:00:08]}  Ra2 {[%clk 0:00:56]} 42. Rf4 {[%clk 0:00:08]}  Rc1 {[%clk 0:00:51]} 43. Kg7 {[%clk 0:00:08]}  Re1 {[%clk 0:00:47]} 44. h4 {[%clk 0:00:07]}  Ree2 {[%clk 0:00:47]} 45. Nd1 {[%clk 0:00:02]}  Rad2 {[%clk 0:00:46]} 46. Nc3 {[%clk 0:00:02]}  Rxf2 {[%clk 0:00:46]} 47. Rxf2 {[%clk 0:00:01]}  Rxf2 {[%clk 0:00:47]} 48. Nb5 {[%clk 0:00:02]}  Rxg2 {[%clk 0:00:43]} 49. Nd6+ {[%clk 0:00:03]}  Kc6 {[%clk 0:00:43]} 50. Nxf7 {[%clk 0:00:04]}  f4 {[%clk 0:00:40]} 51. Ng5 {[%clk 0:00:03]}  Bg4 {[%clk 0:00:35]} 52. e6 {[%clk 0:00:03]}  Bxe6 {[%clk 0:00:34]} 53. Nxe6 {[%clk 0:00:04]}  Kd6 {[%clk 0:00:30]} 54. Nxf4 {[%clk 0:00:04]}  Rg4 {[%clk 0:00:27]} 55. Nxg6 {[%clk 0:00:04]}  Rxa4 {[%clk 0:00:27]} 56. Be5+ {[%clk 0:00:03]}  Ke6 {[%clk 0:00:26]} 57. Bb8 {[%clk 0:00:03]}  Rg4 {[%clk 0:00:24]} 58. Kh6 {[%clk 0:00:03]}  a6 {[%clk 0:00:21]} 59. Nf4+ {[%clk 0:00:04]}  Kf5 {[%clk 0:00:20]} 60. Nxh5 {[%clk 0:00:04]}  Rxh4 {[%clk 0:00:19]} 61. Bg3 {[%clk 0:00:03]}  Rh3 {[%clk 0:00:19]} 62. Bf2 {[%clk 0:00:03]}  Kg4 {[%clk 0:00:19]} 63. Bxb6 {[%clk 0:00:02]}  Rxh5+ {[%clk 0:00:19]} 64. Kg6 {[%clk 0:00:03]}  Rb5 {[%clk 0:00:20]} 65. Bd4 {[%clk 0:00:03]}  a5 {[%clk 0:00:20]} 66. Kf6 {[%clk 0:00:04]}  a4 {[%clk 0:00:21]} 67. Ke6 {[%clk 0:00:04]}  a3 {[%clk 0:00:21]} 68. Kd6 {[%clk 0:00:05]}  a2 {[%clk 0:00:21]} 69. Kc6 {[%clk 0:00:04]}  Rb1 {[%clk 0:00:22]} 0-1


[Site "https://www.chess.com"]

[Event "Titled Tuesday Blitz August 1 Late 2023"]
[White "Winkels, Marcel"]
[Black "Hoffmann, Asa"]
[WhiteFideId "1003887"]
[BlackFideId "2001470"]
[WhiteElo "2076"]
[BlackElo "2311"]
[Result "0-1"]
[Round "4"]
[TimeControl "180+1"]
[Date "2023.08.01"]
[WhiteClock "0:00:41"]
[BlackClock "0:01:43"]
[Board "180"]

1. e4 {[%clk 0:03:00]}  d6 {[%clk 0:02:55]} 2. d4 {[%clk 0:03:01]}  Nf6 {[%clk 0:02:54]} 3. Nc3 {[%clk 0:03:01]}  c6 {[%clk 0:02:53]} 4. Bd2 {[%clk 0:03:02]}  e5 {[%clk 0:02:51]} 5. Nf3 {[%clk 0:02:56]}  Bg4 {[%clk 0:02:49]} 6. Be2 {[%clk 0:02:55]}  Nbd7 {[%clk 0:02:48]} 7. O-O {[%clk 0:02:51]}  Bxf3 {[%clk 0:02:48]} 8. Bxf3 {[%clk 0:02:49]}  exd4 {[%clk 0:02:48]} 9. Ne2 {[%clk 0:02:44]}  c5 {[%clk 0:02:47]} 10. Ng3 {[%clk 0:02:41]}  g6 {[%clk 0:02:46]} 11. e5 {[%clk 0:02:27]}  Nxe5 {[%clk 0:02:38]} 12. Bxb7 {[%clk 0:02:26]}  Rb8 {[%clk 0:02:36]} 13. f4 {[%clk 0:02:13]}  Rxb7 {[%clk 0:02:31]} 14. fxe5 {[%clk 0:02:12]}  dxe5 {[%clk 0:02:31]} 15. Bg5 {[%clk 0:02:12]}  Be7 {[%clk 0:02:31]} 16. Qf3 {[%clk 0:01:54]}  Rb6 {[%clk 0:02:29]} 17. Ne4 {[%clk 0:01:50]}  Nxe4 {[%clk 0:02:18]} 18. Bxe7 {[%clk 0:01:39]}  Qxe7 {[%clk 0:02:17]} 19. Qxe4 {[%clk 0:01:38]}  O-O {[%clk 0:02:16]} 20. Qd5 {[%clk 0:01:36]}  Qd6 {[%clk 0:02:13]} 21. Qc4 {[%clk 0:01:36]}  Rxb2 {[%clk 0:02:11]} 22. Rae1 {[%clk 0:01:29]}  Kg7 {[%clk 0:02:05]} 23. Re4 {[%clk 0:01:23]}  f5 {[%clk 0:02:02]} 24. Re2 {[%clk 0:01:21]}  e4 {[%clk 0:02:02]} 25. Qa4 {[%clk 0:01:04]}  Rf7 {[%clk 0:01:55]} 26. Qa3 {[%clk 0:01:00]}  Rb6 {[%clk 0:01:46]} 27. g4 {[%clk 0:00:54]}  c4 {[%clk 0:01:45]} 28. gxf5 {[%clk 0:00:52]}  Qxa3 {[%clk 0:01:44]} 29. f6+ {[%clk 0:00:41]}  Rfxf6 {[%clk 0:01:43]} 0-1


[Site "https://www.chess.com"]

[Event "Titled Tuesday Blitz August 1 Late 2023"]
[White "Stanisz, Patryk"]
[Black "Semenova, Alina"]
[WhiteFideId "1123106"]
[BlackFideId "24113875"]
[WhiteElo "2299"]
[BlackElo "2075"]
[Result "1-0"]
[Round "4"]
[TimeControl "180+1"]
[Date "2023.08.01"]
[WhiteClock "0:00:48"]
[BlackClock "0:00:00"]
[Board "181"]

1. d4 {[%clk 0:03:00]}  Nf6 {[%clk 0:02:59]} 2. c4 {[%clk 0:03:01]}  g6 {[%clk 0:03:00]} 3. Nc3 {[%clk 0:03:01]}  d6 {[%clk 0:03:00]} 4. e4 {[%clk 0:03:01]}  Bg7 {[%clk 0:03:01]} 5. Be2 {[%clk 0:03:01]}  O-O {[%clk 0:03:01]} 6. g4 {[%clk 0:03:01]}  e5 {[%clk 0:03:00]} 7. d5 {[%clk 0:03:02]}  a5 {[%clk 0:02:51]} 8. g5 {[%clk 0:03:02]}  Nfd7 {[%clk 0:02:43]} 9. h4 {[%clk 0:03:01]}  Nc5 {[%clk 0:02:43]} 10. h5 {[%clk 0:03:00]}  f5 {[%clk 0:02:36]} 11. gxf6 {[%clk 0:02:57]}  Qxf6 {[%clk 0:02:34]} 12. Be3 {[%clk 0:02:49]}  Bh6 {[%clk 0:01:21]} 13. Bxh6 {[%clk 0:02:23]}  Qxf2+ {[%clk 0:01:11]} 14. Kd2 {[%clk 0:02:23]}  Qd4+ {[%clk 0:00:56]} 15. Kc2 {[%clk 0:02:21]}  Rf2 {[%clk 0:00:47]} 16. Qxd4 {[%clk 0:02:10]}  exd4 {[%clk 0:00:48]} 17. Nb5 {[%clk 0:02:11]}  Bg4 {[%clk 0:00:32]} 18. Nxd4 {[%clk 0:02:02]}  Nxe4 {[%clk 0:00:14]} 19. Rf1 {[%clk 0:01:59]}  Rxf1 {[%clk 0:00:08]} 20. Bxf1 {[%clk 0:01:59]}  Ng3 {[%clk 0:00:08]} 21. Rh4 {[%clk 0:01:49]}  Bxh5 {[%clk 0:00:08]} 22. Rf4 {[%clk 0:01:45]}  Na6 {[%clk 0:00:08]} 23. Bd3 {[%clk 0:01:40]}  Nb4+ {[%clk 0:00:05]} 24. Kc3 {[%clk 0:01:40]}  Nxa2+ {[%clk 0:00:05]} 25. Kb3 {[%clk 0:01:36]}  Nb4 {[%clk 0:00:03]} 26. Bb1 {[%clk 0:01:22]}  Bd1+ {[%clk 0:00:03]} 27. Kc3 {[%clk 0:01:19]}  Bh5 {[%clk 0:00:02]} 28. Ne6 {[%clk 0:01:14]}  Re8 {[%clk 0:00:00]} 29. Nxc7 {[%clk 0:00:48]} 1-0


[Site "https://www.chess.com"]

[Event "Titled Tuesday Blitz August 1 Late 2023"]
[White "Carlsen, Magnus"]
[Black "Aravindh, Chithambaram VR."]
[WhiteFideId "1503014"]
[BlackFideId "5072786"]
[WhiteElo "3257"]
[BlackElo "2897"]
[Result "1-0"]
[Round "5"]
[TimeControl "180+1"]
[Date "2023.08.01"]
[WhiteClock "0:00:44"]
[BlackClock "0:00:00"]
[Board "1"]

1. g3 {[%clk 0:02:55]}  g6 {[%clk 0:02:59]} 2. Bg2 {[%clk 0:02:48]}  Bg7 {[%clk 0:02:58]} 3. c4 {[%clk 0:02:49]}  Nf6 {[%clk 0:02:56]} 4. Nc3 {[%clk 0:02:49]}  O-O {[%clk 0:02:56]} 5. d4 {[%clk 0:02:50]}  Nc6 {[%clk 0:02:48]} 6. e3 {[%clk 0:02:46]}  e5 {[%clk 0:02:34]} 7. d5 {[%clk 0:02:46]}  Ne7 {[%clk 0:02:34]} 8. d6 {[%clk 0:02:47]}  cxd6 {[%clk 0:02:29]} 9. Qxd6 {[%clk 0:02:47]}  Nf5 {[%clk 0:02:17]} 10. Qd3 {[%clk 0:02:47]}  d5 {[%clk 0:01:56]} 11. cxd5 {[%clk 0:02:42]}  e4 {[%clk 0:01:43]} 12. Qd1 {[%clk 0:02:42]}  Nd6 {[%clk 0:01:41]} 13. Nge2 {[%clk 0:02:41]}  h5 {[%clk 0:01:32]} 14. h3 {[%clk 0:02:41]}  Re8 {[%clk 0:01:27]} 15. O-O {[%clk 0:02:41]}  h4 {[%clk 0:01:22]} 16. Nd4 {[%clk 0:02:32]}  Nh7 {[%clk 0:01:07]} 17. g4 {[%clk 0:02:25]}  Ng5 {[%clk 0:01:03]} 18. Bd2 {[%clk 0:02:04]}  Nc4 {[%clk 0:00:56]} 19. Be1 {[%clk 0:01:48]}  Nxb2 {[%clk 0:00:40]} 20. Qc2 {[%clk 0:01:42]}  Nd3 {[%clk 0:00:28]} 21. Nxe4 {[%clk 0:01:40]}  Nxe1 {[%clk 0:00:08]} 22. Rfxe1 {[%clk 0:01:35]}  Nxe4 {[%clk 0:00:04]} 23. Bxe4 {[%clk 0:01:35]}  Bxd4 {[%clk 0:00:03]} 24. exd4 {[%clk 0:01:35]}  Qd6 {[%clk 0:00:02]} 25. Qc5 {[%clk 0:01:10]}  Qf4 {[%clk 0:00:02]} 26. Bg2 {[%clk 0:01:08]}  Bd7 {[%clk 0:00:02]} 27. d6 {[%clk 0:01:00]}  Rac8 {[%clk 0:00:01]} 28. Rxe8+ {[%clk 0:00:52]}  Rxe8 {[%clk 0:00:02]} 29. Qc7 {[%clk 0:00:51]}  Re2 {[%clk 0:00:03]} 30. Rf1 {[%clk 0:00:50]}  Be6 {[%clk 0:00:02]} 31. d5 {[%clk 0:00:44]}  Bxg4 {[%clk 0:00:01]} 32. Qd8+ {[%clk 0:00:44]}  Kg7 {[%clk 0:00:01]} 33. Qxh4 {[%clk 0:00:45]}  Qxd6 {[%clk 0:00:01]} 34. Qxg4 {[%clk 0:00:44]}  Rxa2 {[%clk 0:00:01]} 35. Qd4+ {[%clk 0:00:45]}  Kg8 {[%clk 0:00:00]} 36. Re1 {[%clk 0:00:44]} 1-0


[Site "https://www.chess.com"]